bitfinex-derivatives/quotes_SOLF0:USTF0_20250318
["timestamp","ask_amount","ask_price","bid_price","bid_amount"]
[1742299337950,2.0049,123.72,123.69,28.84]
[1742299338557,0.05731477,123.72,123.71,8.0832]
[1742299344252,0.05731477,123.72,123.71,29.26827422]
[1742299344853,1.477e-05,123.72,123.71,58.10827422]
[1742299345058,4.2018,123.76,123.75,8.0806]
[1742299346461,4.2018,123.76,123.74,8.14057939]
[1742299346754,4.2018,123.76,123.74,0.05967939]
[1742299346949,12.2821,123.76,123.74,0.05967939]
[1742299347659,4.2018,123.76,123.74,0.05967939]
[1742299348056,4.2018,123.76,123.74,8.14077939]
[1742299348254,4.2018,123.76,123.74,0.05967939]
[1742299348663,12.2821,123.76,123.74,0.05967939]
[1742299348855,0.05998132,123.77,123.74,0.05967939]
[1742299349062,0.05998132,123.77,123.76,8.0799]
[1742299350655,0.05998132,123.77,123.76,36.9599]
[1742299351460,0.05998132,123.77,123.76,8.0799]
[1742299351760,0.05998132,123.77,123.76,36.9399]
[1742299351960,0.05998132,123.77,123.75,8.0802]
[1742299352561,0.05998132,123.77,123.74,28.93967939]
[1742299352962,28.9,123.76,123.74,0.05967939]
[1742299353664,0.05998132,123.77,123.74,0.05967939]
[1742299353964,0.05998132,123.77,123.76,8.0799]
[1742299354964,0.05998132,123.77,123.74,29.05967939]
[1742299355465,0.05998132,123.77,123.76,8.0799]
[1742299355769,0.05998132,123.77,123.76,37.0999]
[1742299355968,0.05998132,123.77,123.76,8.0799]
[1742299357166,0.05998132,123.77,123.76,29.26497422]
[1742299357366,0.05998132,123.77,123.76,58.32497422]
[1742299357959,0.05998132,123.77,123.76,37.1399]
[1742299359870,0.05998132,123.77,123.76,8.0799]
[1742299368877,0.05998132,123.77,123.75,58.36537422]
[1742299369078,0.05998132,123.77,123.75,29.1]
[1742299369776,0.05998132,123.77,123.74,0.05967939]
[1742299369978,29.14,123.76,123.74,0.05967939]
[1742299371083,31.1738,123.76,123.74,0.05967939]
[1742299371879,8.0806,123.75,123.74,0.05967939]
[1742299378582,29.14,123.76,123.74,8.14087939]
[1742299379880,8.13958132,123.77,123.74,8.14087939]
[1742299380080,37.23958132,123.77,123.74,8.14087939]
[1742299380281,8.08,123.76,123.74,0.05967939]
[1742299380788,29.15998132,123.77,123.74,0.05967939]
[1742299380983,8.0806,123.75,123.74,0.05967939]
[1742299381173,29.15998132,123.77,123.74,0.05967939]
[1742299381378,8.0806,123.75,123.74,0.05967939]
[1742299381582,37.1806,123.75,123.74,0.05967939]
[1742299381979,29.1,123.75,123.74,0.05967939]
[1742299382487,29.1,123.75,123.74,8.14087939]
[1742299383687,29.1,123.75,123.74,0.05967939]
[1742299384394,29.1,123.75,123.74,8.14087939]
[1742299387593,29.1,123.75,123.74,0.05967939]
[1742299387898,29.1,123.75,123.74,8.14087939]
[1742299388201,37.1806,123.75,123.74,0.05967939]
[1742299391490,8.0827,123.72,123.69,287.86507422]
[1742299391695,29.0,123.73,123.69,287.86507422]
[1742299391896,8.0826,123.72,123.7,8.0835]
[1742299392687,8.1426986,123.72,123.7,8.13454535]
[1742299392899,29.04,123.71,123.65,21.18507422]
[1742299393594,29.04,123.71,123.67,8.0853]
[1742299394002,0.05232844,123.7,123.68,0.0565829]
[1742299394200,8.0845,123.69,123.68,0.0565829]
[1742299394595,0.05232844,123.7,123.68,0.0565829]
[1742299394897,8.13652844,123.7,123.68,8.1415829]
[1742299395499,0.05232844,123.7,123.68,0.0565829]
[1742299395997,0.05232844,123.7,123.69,8.0845]
[1742299397994,0.05232844,123.7,123.69,29.26957422]
[1742299398698,48.40005662,123.75,123.74,8.0812]
[1742299399603,44.09415662,123.75,123.74,8.0812]
[1742299400203,0.05695738,123.76,123.75,8.0806]
[1742299401305,0.05695738,123.76,123.73,50.27904709]
[1742299401509,29.09695738,123.76,123.73,0.05397287]
[1742299401906,8.0809,123.75,123.73,8.13577287]
[1742299402307,37.17705738,123.76,123.73,0.05397287]
[1742299402808,29.09695738,123.76,123.73,0.05397287]
[1742299403004,8.13715738,123.76,123.73,0.05397287]
[1742299403201,0.05695738,123.76,123.75,18.67313711]
[1742299403407,0.05695738,123.76,123.75,29.26567422]
[1742299404107,0.05695738,123.76,123.75,8.0806]
[1742299410406,0.05695738,123.76,123.75,37.3206]
[1742299416713,0.05695738,123.76,123.73,296.05397287]
[1742299416908,0.05695738,123.76,123.73,266.77397287]
[1742299417116,8.0806,123.75,123.73,274.85557287]
[1742299417314,8.0806,123.75,123.73,266.77397287]
[1742299417514,29.28,123.75,123.69,266.68]
[1742299417715,8.0832,123.71,123.69,8.0842]
[1742299418822,8.14169967,123.71,123.69,8.13968171]
[1742299419220,0.05849967,123.71,123.7,8.0839]
[1742299419624,0.05849967,123.71,123.69,0.05548171]
[1742299419824,0.05849967,123.71,123.69,8.13968171]
[1742299420123,0.05849967,123.71,123.69,0.05548171]
[1742299420515,0.05849967,123.71,123.69,8.13968171]
[1742299421223,0.05849967,123.71,123.7,8.0839]
[1742299423315,0.05849967,123.71,123.69,0.05548171]
[1742299423925,0.05849967,123.71,123.69,29.29548171]
[1742299424125,0.05849967,123.71,123.7,8.0839]
[1742299424327,0.05849967,123.71,123.69,0.05548171]
[1742299425923,8.14199967,123.71,123.69,0.05548171]
[1742299426119,0.05849967,123.71,123.69,0.05548171]
[1742299426325,2.12979967,123.71,123.69,0.05548171]
[1742299426526,29.28,123.7,123.69,0.05548171]
[1742299427230,37.3639,123.7,123.69,0.05548171]
[1742299427428,37.3639,123.7,123.67,8.0856]
[1742299427429,29.28,123.7,123.65,266.68]
[1742299427828,8.0855,123.68,123.65,274.7667]
[1742299428529,8.13646495,123.68,123.65,274.81839877]
[1742299428730,8.0861,123.67,123.65,266.73169877]
[1742299429030,0.05096495,123.68,123.65,266.73169877]
[1742299429226,0.05096495,123.68,123.65,0.05169877]
[1742299429227,8.0858,123.67,123.65,0.05169877]
[1742299429428,29.29096495,123.68,123.65,0.05169877]
[1742299429732,8.0861,123.67,123.65,0.05169877]
[1742299430225,29.29096495,123.68,123.65,0.05169877]
[1742299430626,37.37656495,123.68,123.65,8.13829877]
[1742299430827,29.29096495,123.68,123.65,0.05169877]
[1742299431132,37.37656495,123.68,123.65,8.13839877]
[1742299432033,37.37656495,123.68,123.66,8.0864]
[1742299432935,29.29096495,123.68,123.66,8.0864]
[1742299434037,37.37616495,123.68,123.66,8.0864]
[1742299435738,29.29096495,123.68,123.65,0.05169877]
[1742299436142,8.0865,123.67,123.65,0.05169877]
[1742299436332,29.29096495,123.68,123.65,0.05169877]
[1742299437835,8.0858,123.67,123.65,0.05169877]
[1742299438847,8.0858,123.67,123.65,8.13849877]
[1742299439048,37.37646495,123.68,123.65,8.13849877]
[1742299439739,37.37646495,123.68,123.66,8.0862]
[1742299440047,37.37646495,123.68,123.65,0.05169877]
[1742299440345,8.0859,123.67,123.65,8.13849877]
[1742299440546,29.18,123.66,123.65,0.05169877]
[1742299440737,8.0878,123.64,123.62,8.0888]
[1742299441038,8.0878,123.64,123.59,27.15197422]
[1742299441039,29.2,123.64,123.59,27.15197422]
[1742299441241,29.2,123.64,123.6,8.09]
[1742299441441,29.2,123.64,123.59,27.15197422]
[1742299441942,0.0516627,123.63,123.6,0.0520318]
[1742299442745,8.1403627,123.63,123.6,0.0520318]
[1742299443343,8.1403627,123.63,123.61,8.0896]
[1742299443538,0.0516627,123.63,123.6,0.0520318]
[1742299443941,8.1404627,123.63,123.61,8.0895]
[1742299444143,8.1404627,123.63,123.6,0.0520318]
[1742299444144,0.0516627,123.63,123.6,0.0520318]
[1742299444442,8.0897,123.62,123.6,0.0520318]
[1742299445349,2.1623627,123.63,123.6,0.0520318]
[1742299445745,8.0894,123.62,123.6,0.0520318]
[1742299446143,2.1623627,123.63,123.6,0.0520318]
[1742299446345,8.0897,123.61,123.6,0.0520318]
[1742299446650,29.16,123.62,123.6,0.0520318]
[1742299447249,8.0897,123.61,123.6,0.0520318]
[1742299448244,37.2495,123.62,123.6,0.0520318]
[1742299448443,29.16,123.62,123.6,0.0520318]
[1742299449045,2.0315,123.61,123.59,5.9669]
[1742299449349,8.0908,123.6,123.56,8.0926]
[1742299449650,2.0315,123.61,123.56,10.59253711]
[1742299449651,29.66,123.59,123.56,10.59253711]
[1742299450047,29.71961065,123.59,123.56,10.65139133]
[1742299450244,29.71961065,123.59,123.57,8.092]
[1742299450441,29.71961065,123.59,123.56,10.65139133]
[1742299450747,8.0917,123.58,123.56,0.05885422]
[1742299450951,29.71961065,123.59,123.56,0.05885422]
[1742299452244,29.71961065,123.59,123.53,266.94]
[1742299452454,8.094,123.55,123.52,10.59253711]
[1742299452642,29.62,123.56,123.52,10.59253711]
[1742299453051,37.7133,123.56,123.53,8.0946]
[1742299453551,29.68177692,123.56,123.52,10.59253711]
[1742299454049,29.68177692,123.56,123.55,8.0937]
[1742299454444,0.06177692,123.56,123.55,8.0937]
[1742299458557,0.06177692,123.56,123.54,8.094]
[1742299458756,0.06177692,123.56,123.52,40.25253711]
[1742299459054,0.06177692,123.56,123.55,8.0937]
[1742299460546,0.06177692,123.56,123.55,18.68623711]
[1742299460750,29.68,123.6,123.59,8.0905]
[1742299461251,29.68,123.6,123.58,8.0914]
[1742299461550,29.68,123.6,123.56,10.59253711]
[1742299461751,29.68,123.6,123.59,8.0911]
[1742299462354,37.7705,123.6,123.58,8.0915]
[1742299463662,29.68,123.6,123.57,0.05537311]
[1742299464345,8.0914,123.59,123.57,0.05537311]
[1742299464858,37.7707,123.6,123.57,8.14767311]
[1742299465057,29.68,123.6,123.57,0.05537311]
[1742299465956,29.68,123.6,123.57,8.14747311]
[1742299465957,8.0914,123.59,123.57,8.14747311]
[1742299466156,29.68,123.6,123.57,0.05537311]
[1742299466459,29.68,123.6,123.58,8.0912]
[1742299467061,29.68,123.6,123.57,0.05537311]
[1742299468662,37.7705,123.6,123.57,0.05537311]
[1742299468961,29.68,123.6,123.57,0.05537311]
[1742299469562,29.68,123.6,123.59,8.0911]
[1742299470565,37.7704,123.6,123.58,8.0913]
[1742299472167,8.0904,123.6,123.58,8.0913]
[1742299472366,39.82115565,123.61,123.59,8.0911]
[1742299472963,10.18115565,123.61,123.59,8.0911]
[1742299475068,8.14965565,123.61,123.59,8.0911]
[1742299475869,8.0904,123.6,123.58,8.0914]
[1742299478580,8.14975565,123.61,123.58,8.0914]
[1742299479182,8.14975565,123.61,123.59,8.091]
[1742299479483,8.0907,123.6,123.57,13.63217477]
[1742299479676,0.05965565,123.61,123.57,13.63217477]
[1742299480181,8.0905,123.6,123.58,8.0912]
[1742299480379,0.05965565,123.61,123.57,13.63217477]
[1742299480580,29.52,123.6,123.57,13.63217477]
[1742299480780,8.0914,123.59,123.57,21.72427477]
[1742299481376,29.52,123.6,123.57,21.72427477]
[1742299481582,37.6107,123.6,123.58,8.0916]
[1742299482585,8.0912,123.59,123.57,8.14737311]
[1742299482988,29.52,123.6,123.57,0.05537311]
[1742299483286,37.6108,123.6,123.58,8.0916]
[1742299486997,29.52,123.6,123.57,13.63217477]
[1742299488182,29.52,123.6,123.59,8.0911]
[1742299488589,0.05965565,123.61,123.57,13.63217477]
[1742299488791,0.05965565,123.61,123.59,8.0906]
[1742299489693,8.14955565,123.61,123.59,8.0906]
[1742299490088,8.0906,123.6,123.58,8.0913]
[1742299490591,37.4906,123.6,123.58,8.0913]
[1742299491894,29.4,123.6,123.58,8.0913]
[1742299492093,29.4,123.6,123.57,13.63217477]
[1742299492693,29.4,123.6,123.59,8.0911]
[1742299493696,29.4,123.6,123.59,14.87950083]
[1742299493895,0.05965565,123.61,123.6,8.0904]
[1742299499295,0.05965565,123.61,123.6,21.66720166]
[1742299504297,5.565e-05,123.61,123.6,21.66720166]
[1742299504504,40.25405707,123.65,123.64,8.0878]
[1742299505289,11.01405707,123.65,123.64,8.0878]
[1742299506102,11.01405707,123.65,123.64,21.66460166]
[1742299506801,11.01405707,123.65,123.63,8.14807477]
[1742299507300,11.01405707,123.65,123.63,0.05987477]
[1742299507500,19.10145707,123.65,123.63,0.05987477]
[1742299508605,8.0878,123.64,123.63,0.05987477]
[1742299509196,37.3678,123.64,123.63,0.05987477]
[1742299509403,8.0895,123.62,123.59,13.57680166]
[1742299509801,37.3895,123.62,123.59,13.57680166]
[1742299510598,37.44250936,123.62,123.6,8.0901]
[1742299511602,29.35300936,123.62,123.61,8.0897]
[1742299511910,0.05300936,123.62,123.61,21.66650166]
[1742299513104,0.05300936,123.62,123.61,50.98650166]
[1742299513401,73.41415662,123.66,123.61,42.89680166]
[1742299513602,73.41415662,123.66,123.63,13.57680166]
[1742299514104,73.41415662,123.66,123.62,13.57680166]
[1742299514500,8.14741828,123.65,123.63,0.05164623]
[1742299515202,8.14741828,123.65,123.63,8.13984623]
[1742299517906,0.05981828,123.65,123.64,8.0878]
[1742299520699,8.14741828,123.65,123.63,0.05164623]
[1742299520905,0.05981828,123.65,123.63,0.05164623]
[1742299521307,42.83680166,123.64,123.59,13.57680166]
[1742299521901,42.83680166,123.64,123.6,8.0901]
[1742299522611,0.05409739,123.63,123.61,0.05683771]
[1742299522805,8.0892,123.62,123.61,0.05683771]
[1742299523812,13.63089905,123.63,123.61,0.05683771]
[1742299523813,8.14289739,123.63,123.61,0.05683771]
[1742299524813,8.14289739,123.63,123.61,8.14653771]
[1742299525910,0.05409739,123.63,123.61,8.14653771]
[1742299526109,0.05409739,123.63,123.62,8.0891]
[1742299526716,0.05409739,123.63,123.62,21.66590166]
[1742299529917,0.05409739,123.63,123.62,8.0891]
[1742299533919,0.05409739,123.63,123.62,21.66590166]
[1742299552638,9.739e-05,123.63,123.62,21.66590166]
[1742299557541,39.1768,123.68,123.66,8.0861]
[1742299558042,83.27095662,123.68,123.66,8.0861]
[1742299558534,83.32631479,123.68,123.66,8.0861]
[1742299558735,83.32631479,123.68,123.66,8.14702019]
[1742299560141,54.40631479,123.68,123.66,8.14702019]
[1742299560743,10.31215817,123.68,123.66,8.14702019]
[1742299561236,10.31215817,123.68,123.66,0.06092019]
[1742299562142,39.21215817,123.68,123.66,0.06092019]
[1742299562439,21.66260166,123.67,123.66,0.06092019]
[1742299562640,13.57680166,123.67,123.62,13.57680166]
[1742299562841,13.57680166,123.67,123.6,280.51680166]
[1742299562842,28.9,123.66,123.6,280.51680166]
[1742299563037,8.088,123.64,123.62,8.0887]
[1742299563243,8.088,123.64,123.6,309.41680166]
[1742299563438,15.76090166,123.65,123.6,309.41680166]
[1742299563644,15.76090166,123.65,123.61,8.0895]
[1742299563645,8.0885,123.63,123.61,8.0895]
[1742299563844,8.0885,123.63,123.61,8.14062754]
[1742299564448,8.0891,123.62,123.61,0.05112754]
[1742299565343,36.9891,123.62,123.61,0.05112754]
[1742299567948,28.9,123.62,123.61,0.05112754]
[1742299568340,28.9,123.62,123.61,8.14082754]
[1742299568845,28.9,123.62,123.61,21.7176292]
[1742299569150,75.08130527,123.64,123.63,8.0884]
[1742299571249,75.08130527,123.64,123.62,8.0887]
[1742299572351,30.98714865,123.64,123.62,8.0887]
[1742299573654,39.07494865,123.64,123.62,8.0887]
[1742299574155,39.07494865,123.64,123.61,21.7174292]
[1742299574355,39.07494865,123.64,123.61,8.14062754]
[1742299574954,8.0884,123.63,123.61,8.14062754]
[1742299575144,30.98714865,123.64,123.62,8.0891]
[1742299575548,39.07524865,123.64,123.61,0.05112754]
[1742299576457,39.07524865,123.64,123.62,8.089]
[1742299577150,39.07524865,123.64,123.61,8.14052754]
[1742299577351,39.07524865,123.64,123.61,0.05112754]
[1742299577551,39.07524865,123.64,123.62,8.0888]
[1742299577957,39.07524865,123.64,123.61,0.05112754]
[1742299578150,8.0885,123.63,123.61,0.05112754]
[1742299578352,13.57680166,123.63,123.61,0.05112754]
[1742299578554,21.66590166,123.62,123.61,0.05112754]
[1742299578860,13.57680166,123.61,123.57,8.0919]
[1742299579057,13.57680166,123.61,123.56,309.39680166]
[1742299579358,8.0907,123.6,123.58,8.0914]
[1742299579756,8.15165827,123.6,123.58,8.0914]
[1742299580056,0.06095827,123.6,123.56,309.39680166]
[1742299580258,0.06095827,123.6,123.57,13.57680166]
[1742299580858,0.06095827,123.6,123.59,8.0911]
[1742299583057,0.06095827,123.6,123.58,8.0913]
[1742299585163,0.06095827,123.6,123.57,13.57680166]
[1742299585458,0.06095827,123.6,123.58,13.57680166]
[1742299585662,0.06095827,123.6,123.59,8.0911]
[1742299586057,0.06095827,123.6,123.57,13.57680166]
[1742299586258,8.15135827,123.6,123.58,8.0915]
[1742299586556,0.06095827,123.6,123.58,8.0915]
[1742299587964,8.15145827,123.6,123.58,8.0915]
[1742299590863,13.57680166,123.59,123.54,13.57680166]
[1742299591064,42.49680166,123.58,123.53,13.57680166]
[1742299591265,42.49680166,123.58,123.53,21.67150166]
[1742299591465,8.0935,123.56,123.53,21.67150166]
[1742299591664,8.0935,123.56,123.53,13.57680166]
[1742299591866,8.0935,123.56,123.54,8.094]
[1742299592471,8.0935,123.56,123.53,21.67150166]
[1742299592964,13.63277761,123.57,123.53,8.0947]
[1742299593172,28.92,123.56,123.53,8.0947]
[1742299593363,37.0133,123.56,123.53,8.0947]
[1742299594875,28.92,123.56,123.54,8.0942]
[1742299596265,37.0131,123.56,123.54,8.0942]
[1742299600471,37.0131,123.56,123.53,8.0946]
[1742299601569,37.0131,123.56,123.54,8.0942]
[1742299602571,8.0938,123.55,123.52,280.61680166]
[1742299602770,13.57680166,123.55,123.51,28.92]
[1742299602970,28.92,123.54,123.5,13.57680166]
[1742299603174,8.0952,123.53,123.51,8.096]
[1742299603375,42.55154665,123.54,123.51,8.096]
[1742299604977,8.0951,123.53,123.51,8.096]
[1742299605973,42.49680166,123.52,123.48,267.12]
[1742299606169,13.57680166,123.51,123.46,13.57680166]
[1742299606373,28.92,123.5,123.46,13.57680166]
[1742299606572,28.92,123.5,123.47,8.0986]
[1742299606573,37.0172,123.5,123.47,8.0986]
[1742299607671,50.59400166,123.5,123.46,8.0992]
[1742299608077,50.59400166,123.5,123.47,8.0988]
[1742299609775,28.92,123.5,123.48,8.0982]
[1742299610079,28.92,123.5,123.47,13.57680166]
[1742299610278,28.92,123.5,123.48,13.57680166]
[1742299610480,28.92,123.5,123.49,8.0976]
[1742299610779,0.0575267,123.51,123.48,13.57680166]
[1742299610981,0.0575267,123.51,123.5,8.097]
[1742299620890,0.0575267,123.51,123.5,21.67380166]
[1742299622182,0.0575267,123.51,123.5,8.097]
[1742299623487,0.0575267,123.51,123.48,28.94]
[1742299623881,8.1541267,123.51,123.47,13.57680166]
[1742299624082,8.1541267,123.51,123.48,8.0979]
[1742299624284,42.57432836,123.51,123.48,8.0979]
[1742299624485,8.097,123.5,123.48,8.0979]
[1742299624985,42.57432836,123.51,123.47,8.0987]
[1742299625192,13.57680166,123.5,123.45,13.57680166]
[1742299625588,8.0979,123.49,123.45,13.57680166]
[1742299626092,0.05804199,123.48,123.45,13.57680166]
[1742299626493,0.05804199,123.48,123.47,8.0989]
[1742299628595,0.05804199,123.48,123.47,21.67570166]
[1742299629584,0.05804199,123.48,123.47,8.0989]
[1742299634589,0.05804199,123.48,123.45,13.57680166]
[1742299635708,0.05804199,123.48,123.47,8.0989]
[1742299636407,0.05804199,123.48,123.47,21.67570166]
[1742299636909,0.05804199,123.48,123.47,8.0989]
[1742299637303,0.05804199,123.48,123.46,8.0994]
[1742299637505,8.15644199,123.48,123.46,8.0994]
[1742299638108,8.0991,123.47,123.44,280.71680166]
[1742299638705,8.0996,123.46,123.44,267.14]
[1742299638903,28.94,123.47,123.43,13.57680166]
[1742299639313,8.1002,123.45,123.43,13.57680166]
[1742299639509,8.1002,123.45,123.42,67.07641364]
[1742299639708,0.05435853,123.45,123.41,21.67910166]
[1742299640014,28.99435853,123.45,123.41,21.67910166]
[1742299640215,8.101,123.44,123.41,13.57680166]
[1742299641113,8.101,123.44,123.41,21.67940166]
[1742299644217,8.101,123.44,123.42,8.1021]
[1742299644617,37.09495853,123.45,123.42,8.1021]
[1742299645017,28.99435853,123.45,123.41,8.1025]
[1742299645417,8.1015,123.44,123.41,8.1025]
[1742299646123,8.1015,123.44,123.42,8.1022]
[1742299646515,37.09495853,123.45,123.42,8.1022]
[1742299646812,37.09495853,123.45,123.43,8.1014]
[1742299647808,37.09495853,123.45,123.42,21.67860166]
[1742299648013,37.09495853,123.45,123.42,8.1018]
[1742299648419,37.09495853,123.45,123.43,8.1015]
[1742299648619,37.09495853,123.45,123.41,13.57680166]
[1742299648820,37.09495853,123.45,123.42,8.1019]
[1742299649019,42.57116019,123.45,123.4,280.85680166]
[1742299649419,13.57680166,123.44,123.4,267.28]
[1742299649619,8.102,123.43,123.4,275.3832]
[1742299649822,13.57680166,123.44,123.4,267.28]
[1742299650020,8.1026,123.42,123.4,267.28]
[1742299650420,0.05770584,123.42,123.4,267.28]
[1742299650620,0.05770584,123.42,123.41,8.1027]
[1742299653324,0.05770584,123.42,123.4,267.28]
[1742299654130,8.16030584,123.42,123.4,267.28]
[1742299654326,0.05770584,123.42,123.4,267.28]
[1742299654620,8.1029,123.41,123.4,267.28]
[1742299655024,0.05770584,123.42,123.4,267.28]
[1742299655327,8.16030584,123.42,123.4,267.28]
[1742299656627,0.05770584,123.42,123.4,267.28]
[1742299657530,8.16020584,123.42,123.4,267.28]
[1742299658329,8.1029,123.41,123.4,267.28]
[1742299658827,8.16030584,123.42,123.4,267.28]
[1742299659627,8.16030584,123.42,123.4,275.3831]
[1742299659828,0.05770584,123.42,123.4,275.3831]
[1742299660625,0.05770584,123.42,123.41,8.1029]
[1742299660927,59.93699408,123.48,123.41,13.57680166]
[1742299661128,73.11289242,123.48,123.45,21.67660166]
[1742299661332,81.21139242,123.48,123.45,21.67660166]
[1742299661727,44.17289242,123.48,123.46,8.0993]
[1742299662233,44.23174336,123.48,123.46,8.1524373]
[1742299662635,52.33004336,123.48,123.46,0.0531373]
[1742299662934,44.23174336,123.48,123.46,0.0531373]
[1742299663137,13.6356526,123.48,123.46,0.0531373]
[1742299663932,8.0989,123.47,123.46,0.0531373]
[1742299667438,21.7341526,123.48,123.46,8.1527373]
[1742299669736,21.7341526,123.48,123.46,0.0531373]
[1742299669936,8.0989,123.47,123.46,0.0531373]
[1742299670936,37.0389,123.47,123.46,0.0531373]
[1742299673638,42.51680166,123.47,123.42,13.57680166]
[1742299674241,8.1006,123.45,123.42,21.67850166]
[1742299674542,8.1006,123.45,123.41,13.57680166]
[1742299674839,8.16240727,123.45,123.42,0.02237922]
[1742299675742,0.06180727,123.45,123.43,8.1013]
[1742299675942,0.06180727,123.45,123.42,0.02237922]
[1742299676643,0.06180727,123.45,123.44,8.1009]
[1742299682548,0.06180727,123.45,123.44,21.67770166]
[1742299687546,0.06180727,123.45,123.44,8.1009]
[1742299687850,0.06180727,123.45,123.44,21.67770166]
[1742299690563,0.06180727,123.45,123.44,50.61770166]
[1742299693462,0.06180727,123.45,123.44,21.67770166]
[1742299695961,7.27e-06,123.45,123.44,21.67770166]
[1742299696468,7.27e-06,123.45,123.44,8.1009]
[1742299699773,42.49680893,123.45,123.42,0.02237922]
[1742299700271,37.02060727,123.45,123.43,8.1012]
[1742299700669,8.1009,123.44,123.42,8.12427922]
[1742299700869,42.49680893,123.45,123.42,0.02237922]
[1742299701270,13.57680166,123.44,123.42,0.02237922]
[1742299701468,42.49680893,123.45,123.42,8.12427922]
[1742299701771,28.92000727,123.45,123.42,0.02237922]
[1742299702175,37.02050727,123.45,123.42,0.02237922]
[1742299702969,8.1009,123.44,123.42,0.02237922]
[1742299703973,8.1015,123.43,123.42,0.02237922]
[1742299704873,42.49680893,123.45,123.42,0.02237922]
[1742299705376,8.101,123.44,123.42,0.02237922]
[1742299705577,42.49680893,123.45,123.42,0.02237922]
[1742299705776,44.62390893,123.45,123.42,0.02237922]
[1742299706278,8.1015,123.43,123.42,0.02237922]
[1742299706672,37.0215,123.43,123.42,0.02237922]
[1742299706872,50.59830166,123.43,123.42,0.02237922]
[1742299707080,42.49680166,123.43,123.39,8.1037]
[1742299707577,42.49680166,123.43,123.38,13.57680166]
[1742299707777,42.49680166,123.43,123.39,8.1041]
[1742299707980,13.57680166,123.42,123.37,280.91680166]
[1742299708171,50.59970166,123.41,123.4,0.05699023]
[1742299708674,50.59970166,123.41,123.37,275.4451]
[1742299708675,42.49680166,123.41,123.37,275.4451]
[1742299708881,13.57680166,123.4,123.36,8.1059]
[1742299709176,21.68080166,123.4,123.35,69.81423217]
[1742299709379,21.68080166,123.4,123.37,8.1052]
[1742299709679,21.73421414,123.4,123.37,8.1052]
[1742299710173,8.1043,123.39,123.36,8.1058]
[1742299710378,28.94,123.39,123.35,69.81423217]
[1742299710775,42.51680166,123.39,123.35,56.23743051]
[1742299711179,50.62120166,123.39,123.36,8.106]
[1742299711882,8.1049,123.38,123.36,8.106]
[1742299713082,42.51680166,123.39,123.36,8.106]
[1742299713279,42.51680166,123.39,123.35,8.1066]
[1742299713480,13.57680166,123.38,123.35,8.1066]
[1742299713682,21.68210166,123.38,123.35,8.1066]
[1742299713985,13.57680166,123.38,123.33,13.57680166]
[1742299714284,37.0458,123.37,123.33,13.57680166]
[1742299714585,37.10173559,123.37,123.33,13.57680166]
[1742299714984,8.1063,123.36,123.34,8.107]
[1742299715281,42.57273725,123.37,123.32,42.51680166]
[1742299715487,13.57680166,123.36,123.33,8.1076]
[1742299715985,28.94,123.35,123.31,13.57680166]
[1742299716590,0.05315082,123.34,123.33,8.1081]
[1742299717182,0.05315082,123.34,123.33,21.68490166]
[1742299718489,5.082e-05,123.34,123.33,21.68490166]
[1742299723391,28.94,123.39,123.38,8.1048]
[1742299724089,4.2783,123.4,123.38,8.1048]
[1742299724394,33.2183,123.4,123.38,8.1048]
[1742299724592,33.27171107,123.4,123.38,0.05095989]
[1742299725392,33.27171107,123.4,123.38,8.15545989]
[1742299725892,33.27171107,123.4,123.39,8.1042]
[1742299726394,4.33171107,123.4,123.38,0.05095989]
[1742299726582,4.33171107,123.4,123.38,8.15545989]
[1742299727095,26.01211273,123.4,123.38,0.05095989]
[1742299727691,4.33171107,123.4,123.38,8.15535989]
[1742299728191,4.33171107,123.4,123.39,8.1042]
[1742299728689,2.10941107,123.4,123.39,8.1042]
[1742299729689,0.05341107,123.4,123.39,8.1042]
[1742299730891,0.05341107,123.4,123.38,8.15545989]
[1742299731095,8.15711107,123.4,123.38,0.05095989]
[1742299731283,28.99341107,123.4,123.38,0.05095989]
[1742299731791,21.68100166,123.39,123.38,0.05095989]
[1742299732997,13.57680166,123.39,123.35,267.5]
[1742299733194,28.94,123.38,123.35,267.5]
[1742299733888,28.94,123.38,123.33,13.57680166]
[1742299734094,13.57680166,123.37,123.33,13.57680166]
[1742299734294,28.94,123.36,123.33,13.57680166]
[1742299734595,8.1076,123.34,123.32,28.94]
[1742299734990,8.16395927,123.34,123.32,28.94]